lending/lending_fUSD_20240110
["ID","MTS","AMOUNT","RATE_DAILY","PERIOD"]
[311065289,1704891193507,-1591.28,0.0003452,2]
[311065290,1704891193517,-982.23,0.0003452,2]
[311065291,1704891193527,-960.81,0.0003452,2]
[311065292,1704891193537,-1435.01,0.0003452,2]
[311065293,1704891193547,-1207.08,0.0003452,2]
[311065294,1704891193557,-771.19,0.0003452,2]
[311065295,1704891193566,-1012.64,0.0003452,2]
[311065296,1704891193576,-1395.58,0.0003452,2]
[311065297,1704891193586,-1128.18,0.0003452,2]
[311065298,1704891193596,-1055.12,0.0003452,2]
[311065299,1704891193606,-524.56,0.0003452,2]
[311065300,1704891193617,-500.0,0.0003452,2]
[311065301,1704891193627,-620.01,0.0003452,2]
[311065302,1704891193637,-835.1,0.0003452,2]
[311065303,1704891193648,-1511.92,0.0003452,2]
[311065304,1704891193658,-1179.08,0.0003452,2]
[311065305,1704891193668,-1185.27,0.0003452,2]
[311065306,1704891193678,-1387.63,0.0003452,2]
[311065307,1704891193689,-904.42,0.0003452,2]
[311065308,1704891193699,-500.0,0.0003452,2]
[311065309,1704891193713,-1196.53,0.0003452,2]
[311065310,1704891193723,-525.95,0.0003452,2]
[311065311,1704891193733,-1787.03,0.0003452,2]
[311065312,1704891193743,-674.1,0.0003452,2]
[311065313,1704891193752,-1077.63,0.0003452,2]
[311065314,1704891193762,-755.38,0.0003452,2]
[311065315,1704891193773,-500.0,0.0003452,2]
[311065316,1704891193784,-581.62,0.0003452,2]
[311065317,1704891193794,-1024.85,0.0003452,2]
[311065318,1704891193804,-1257.2,0.0003452,2]
[311065319,1704891193814,-836.69,0.0003452,2]
[311065320,1704891193824,-525.09,0.0003452,2]
[311065321,1704891193834,-782.38,0.0003452,2]
[311065322,1704891193843,-500.0,0.0003452,2]
[311065323,1704891193853,-1749.35,0.0003452,2]
[311065324,1704891193865,-1000.33,0.0003452,2]
[311065325,1704891193875,-604.42,0.0003452,2]
[311065326,1704891193885,-878.75,0.0003452,2]
[311065327,1704891193895,-765.38,0.0003452,2]
[311065328,1704891193906,-679.72,0.0003452,2]
[311065329,1704891193918,-1881.36,0.0003452,2]
[311065330,1704891193927,-631.79,0.0003452,2]
[311065331,1704891193939,-194.54887577,0.0003452,2]
[311065332,1704891193950,-1166.65,0.0003452,2]
[311065333,1704891193963,-500.0,0.0003452,2]
[311065334,1704891193972,-756.6,0.0003452,2]
[311065335,1704891193981,-2844.34,0.0003452,2]
[311065336,1704891193991,-641.96,0.0003452,2]
[311065337,1704891194002,-1044.01,0.0003452,2]
[311065338,1704891194011,-500.0,0.0003452,2]
[311065339,1704891194022,-1332.76,0.0003452,2]
[311065340,1704891194032,-1244.23,0.0003452,2]
[311065341,1704891194042,-563.35626308,0.0003452,2]
[311065342,1704891194053,-729.63,0.0003452,2]
[311065343,1704891194063,-757.76,0.0003452,2]
[311065344,1704891194073,-500.0,0.0003452,2]
[311065345,1704891194083,-500.0,0.0003452,2]
[311065346,1704891194093,-1127.84,0.0003452,2]
[311065347,1704891194103,-1154.12,0.0003452,2]
[311065348,1704891194113,-1044.13,0.0003452,2]
[311065349,1704891194122,-500.0,0.0003452,2]
[311065350,1704891194132,-551.43,0.0003452,2]
[311065351,1704891194142,-1354.13,0.0003452,2]
[311065352,1704891194152,-4714.415204,0.0003452,2]
[311065353,1704891194162,-638.51,0.0003452,2]
[311065354,1704891194172,-862.28,0.0003452,2]
[311065355,1704891194181,-1181.63,0.0003452,2]
[311065356,1704891194191,-757.94,0.0003452,2]
[311065357,1704891194202,-1015.59,0.0003452,2]
[311065358,1704891194214,-823.4,0.0003452,2]
[311065359,1704891194224,-848.07,0.0003452,2]
[311065360,1704891194235,-783.14,0.0003452,2]
[311065361,1704891194245,-500.0,0.0003452,2]
[311065362,1704891194256,-1634.17,0.0003452,2]
[311065363,1704891194266,-892.34,0.0003452,2]
[311065364,1704891194277,-500.0,0.0003452,2]
[311065365,1704891194288,-1731.94,0.0003452,2]
[311065366,1704891194298,-1300.74,0.0003452,2]
[311065367,1704891194308,-1118.35,0.0003452,2]
[311065368,1704891194318,-821.71,0.0003452,2]
[311065369,1704891194329,-1097.53,0.0003452,2]
[311065370,1704891194339,-1115.5,0.0003452,2]
[311065371,1704891194350,-799.47,0.0003452,2]
[311065372,1704891194360,-500.0,0.0003452,2]
[311065373,1704891194488,-1438.57,0.0003452,2]
[311065374,1704891194499,-1466.84,0.0003452,2]
[311065375,1704891194508,-652.51,0.0003452,2]
[311065376,1704891194518,-300.05228799,0.0003452,2]
[311065377,1704891194528,-1106.08,0.0003452,2]
[311065378,1704891194538,-1166.35,0.0003452,2]
[311065379,1704891194548,-1804.0,0.0003452,2]
[311065380,1704891194558,-1196.42,0.0003452,2]
[311065381,1704891194568,-1134.06,0.0003452,2]
[311065382,1704891194577,-545.73,0.0003452,2]
[311065383,1704891194587,-848.12,0.0003452,2]
[311065384,1704891194598,-1566.38,0.0003452,2]
[311065385,1704891194608,-714.75,0.0003452,2]
[311065386,1704891194618,-907.54,0.0003452,2]
[311065387,1704891194627,-556.57,0.0003452,2]
[311065388,1704891194637,-924.42,0.0003452,2]
[311065389,1704891194647,-500.0,0.0003452,2]
[311065390,1704891194657,-2743.08,0.0003452,2]
[311065391,1704891194666,-500.0,0.0003452,2]
[311065392,1704891194675,-500.0,0.0003452,2]
[311065393,1704891194684,-1841.24,0.0003452,2]
[311065394,1704891194693,-1407.91,0.0003452,2]
[311065395,1704891194702,-1648.35,0.0003452,2]
[311065396,1704891194714,-546.87,0.0003452,2]
[311065397,1704891194723,-574.07,0.0003452,2]
[311065398,1704891194732,-1615.48,0.0003452,2]
[311065399,1704891194742,-997.75,0.0003452,2]
[311065400,1704891194751,-555.68,0.0003452,2]
[311065401,1704891194761,-627.59,0.0003452,2]
[311065402,1704891194770,-783.23,0.0003452,2]
[311065403,1704891194779,-1687.92,0.0003452,2]
[311065404,1704891194788,-1436.16,0.0003452,2]
[311065405,1704891194798,-893.83,0.0003452,2]
[311065406,1704891194807,-1132.03,0.0003452,2]
[311065407,1704891194817,-608.29,0.0003452,2]
[311065408,1704891194826,-1380.57,0.0003452,2]
[311065409,1704891194836,-933.87,0.0003452,2]
[311065410,1704891194845,-500.0,0.0003452,2]
[311065411,1704891194855,-995.9,0.0003452,2]
[311065412,1704891194864,-957.42,0.0003452,2]
[311065413,1704891194873,-500.0,0.0003452,2]
[311065414,1704891194883,-895.94,0.0003452,2]
[311065415,1704891194892,-1856.22,0.0003452,2]
[311065416,1704891194902,-1480.74,0.0003452,2]
[311065417,1704891194911,-500.0,0.0003452,2]
[311065418,1704891194920,-776.38,0.0003452,2]
[311065419,1704891194929,-1298.12,0.0003452,2]
[311065420,1704891194938,-333.27,0.0003452,2]
[311065421,1704891194947,-1188.98,0.0003452,2]
[311065422,1704891194957,-791.87,0.0003452,2]
[311065423,1704891194968,-700.71,0.0003452,2]
[311065424,1704891194978,-577.69,0.0003452,2]
[311065425,1704891194987,-682.9,0.0003452,2]
[311065426,1704891194997,-923.76,0.0003452,2]
[311065427,1704891195006,-1290.28,0.0003452,2]
[311065428,1704891195016,-672.12,0.0003452,2]
[311065429,1704891195025,-694.02,0.0003452,2]
[311065430,1704891195035,-751.24,0.0003452,2]
[311065431,1704891195045,-1037.2,0.0003452,2]
[311065432,1704891195054,-791.74,0.0003452,2]
[311065433,1704891195063,-2135.41,0.0003452,2]
[311065434,1704891195073,-630.74,0.0003452,2]
[311065435,1704891195082,-500.0,0.0003452,2]
[311065436,1704891195091,-500.0,0.0003452,2]
[311065437,1704891195101,-1065.89,0.0003452,2]
[311065438,1704891195110,-1611.31,0.0003452,2]
[311065439,1704891195120,-500.0,0.0003452,2]
[311065440,1704891195129,-537.76,0.0003452,2]
[311065441,1704891195138,-515.60805841,0.0003452,2]
[311065442,1704891195148,-1096.88,0.0003452,2]
[311065443,1704891195157,-1235.12,0.0003452,2]
[311065444,1704891195167,-508.12,0.0003452,2]
[311065445,1704891195176,-1351.54,0.0003452,2]
[311065446,1704891195185,-1332.96,0.0003452,2]
[311065447,1704891195194,-500.0,0.0003452,2]
[311065448,1704891195203,-500.0,0.0003452,2]
[311065449,1704891195215,-500.0,0.0003452,2]
[311065450,1704891195224,-525.51,0.0003452,2]
[311065451,1704891195232,-2153.22,0.0003452,2]
[311065452,1704891195241,-894.32,0.0003452,2]
[311065453,1704891195250,-1551.48,0.0003452,2]
[311065454,1704891195259,-551.86,0.0003452,2]
[311065455,1704891195269,-1823.35,0.0003452,2]
[311065456,1704891195278,-656.22,0.0003452,2]
[311065457,1704891195288,-903.93,0.0003452,2]
[311065458,1704891195298,-784.54,0.0003452,2]
[311065459,1704891195307,-1466.91,0.0003452,2]
[311065460,1704891195317,-1006.56,0.0003452,2]
[311065461,1704891195326,-1655.17,0.0003452,2]
[311065462,1704891195335,-3133.81,0.0003452,2]
[311065463,1704891195345,-761.32,0.0003452,2]
[311065464,1704891195354,-500.0,0.0003452,2]
[311065465,1704891195363,-1170.77,0.0003452,2]
[311065466,1704891195373,-533.08,0.0003452,2]
[311065467,1704891195383,-1368.59,0.0003452,2]
[311065468,1704891195392,-661.49,0.0003452,2]
[311065469,1704891195402,-1618.49,0.0003452,2]
[311065470,1704891195412,-500.0,0.0003452,2]
[311065471,1704891195422,-8919.11,0.0003452,2]
[311065472,1704891195431,-696.22,0.0003452,2]
[311065473,1704891195441,-813.18,0.0003452,2]
[311065474,1704891195451,-916.52,0.0003452,2]
[311065475,1704891195463,-484.51,0.0003452,2]
[311065476,1704891195472,-1010.96,0.0003452,2]
[311065477,1704891195482,-669.44,0.0003452,2]
[311065478,1704891195493,-895.64,0.0003452,2]
[311065479,1704891195503,-5719.09,0.0003452,2]
[311065480,1704891195513,-500.0,0.0003452,2]
[311065481,1704891195523,-3241.68,0.0003452,2]
[311065482,1704891195533,-1654.81,0.0003452,2]
[311065483,1704891195543,-2147.06,0.0003452,2]
[311065484,1704891195553,-316.93807452,0.0003452,2]
[311065485,1704891195562,-4583.07,0.0003452,2]
[311065486,1704891195572,-4104.47,0.0003452,2]
[311065487,1704891195581,-1135.8,0.0003452,2]
[311065488,1704891195590,-4864.49,0.0003452,2]
[311065489,1704891195599,-1172.6,0.0003452,2]
[311065490,1704891195609,-372.51983314,0.0003452,2]
[311065491,1704891195619,-1306.53,0.0003452,2]
[311065492,1704891195628,-605.42,0.0003452,2]
[311065493,1704891195638,-613.66,0.0003452,2]
[311065494,1704891195647,-3152.91,0.0003452,2]
[311065495,1704891195657,-1839.88,0.0003452,2]
[311065496,1704891195666,-848.46,0.0003452,2]
[311065497,1704891195675,-3087.19,0.0003452,2]
[311065498,1704891195685,-1217.95,0.0003452,2]
[311065499,1704891195694,-1243.05,0.0003452,2]
[311065500,1704891195703,-1107.32,0.0003452,2]
[311065501,1704891195716,-1973.9,0.0003452,2]
[311065502,1704891195726,-500.0,0.0003452,2]
[311065503,1704891195736,-500.0,0.0003452,2]
[311065504,1704891195746,-998.38,0.0003452,2]
[311065505,1704891195756,-1702.03,0.0003452,2]
[311065506,1704891195766,-515.72,0.0003452,2]
[311065507,1704891195776,-613.62466284,0.0003452,2]
[311065508,1704891195785,-3061.74,0.0003452,2]
[311065509,1704891195795,-996.01,0.0003452,2]
[311065510,1704891195806,-1068.18,0.0003452,2]
[311065511,1704891195816,-3064.76,0.0003452,2]
[311065512,1704891195826,-1153.97,0.0003452,2]
[311065513,1704891195835,-6469.31,0.0003452,2]
[311065514,1704891195845,-500.0,0.0003452,2]
[311065515,1704891195855,-20572.41,0.0003452,2]
[311065516,1704891195864,-508.77,0.0003452,2]
[311065517,1704891195873,-1211.96,0.0003452,2]
[311065518,1704891195883,-876.85,0.0003452,2]
[311065519,1704891195893,-8935.6,0.0003452,2]
[311065520,1704891195902,-749.11,0.0003452,2]
[311065521,1704891195912,-1516.45,0.0003452,2]
[311065522,1704891195921,-835.36,0.0003452,2]
[311065523,1704891195931,-289.54754829,0.0003452,2]
[311065524,1704891195941,-3428.01,0.0003452,2]
[311065525,1704891195950,-51777.21,0.0003452,2]
[311065526,1704891195961,-1411.74,0.0003452,2]
[311065527,1704891195970,-2414.62,0.0003452,2]
[311065528,1704891195980,-500.0,0.0003452,2]
[311065529,1704891195990,-28702.52,0.0003452,2]
[311065530,1704891196000,-1449.33,0.0003452,2]
[311065531,1704891196010,-500.0,0.0003452,2]
[311065532,1704891196019,-729.81,0.0003452,2]
[311065533,1704891196029,-1741.33,0.0003452,2]
[311065534,1704891196038,-18242.51,0.0003452,2]
[311065535,1704891196047,-982.47,0.0003452,2]
[311065536,1704891196057,-1198.42,0.0003452,2]
[311065537,1704891196066,-3044.12,0.0003452,2]
[311065538,1704891196076,-669.65,0.0003452,2]
[311065539,1704891196086,-7322.32,0.0003452,2]
[311065540,1704891196095,-883.98,0.0003452,2]
[311065541,1704891196105,-936.43,0.0003452,2]
[311065542,1704891196115,-500.0,0.0003452,2]
[311065543,1704891196125,-1931.34,0.0003452,2]
[311065544,1704891196134,-5311.52,0.0003452,2]
[311065545,1704891196145,-591.04,0.0003452,2]
[311065546,1704891196155,-596.34,0.0003452,2]
[311065547,1704891196166,-1716.44,0.0003452,2]
[311065548,1704891196176,-756.46,0.0003452,2]
[311065549,1704891196186,-1935.34,0.0003452,2]
[311065550,1704891196197,-630.3,0.0003452,2]
[311065551,1704891196207,-896.69,0.0003452,2]
[311065552,1704891196225,-1335.68,0.0003452,2]
[311065553,1704891196237,-11436.48,0.0003452,2]
[311065554,1704891196247,-5273.56,0.0003452,2]
[311065555,1704891196258,-7205.25,0.0003452,2]
[311065556,1704891196268,-738.84,0.0003452,2]
[311065557,1704891196279,-1192.7,0.0003452,2]
[311065558,1704891196290,-962.89,0.0003452,2]
[311065559,1704891196300,-717.02,0.0003452,2]
[311065560,1704891196310,-1285.43,0.0003452,2]
[311065561,1704891196320,-6876.74,0.0003452,2]
[311065562,1704891196331,-1732.97,0.0003452,2]
[311065563,1704891196342,-2245.33,0.0003452,2]
[311065564,1704891196352,-1567.49,0.0003452,2]
[311065565,1704891196362,-790.0,0.0003452,2]
[311065566,1704891196372,-2499.19,0.0003452,2]
[311065567,1704891196383,-932.57,0.0003452,2]
[311065568,1704891196393,-6606.78,0.0003452,2]
[311065569,1704891196402,-2921.42,0.0003452,2]
[311065570,1704891196412,-783.63,0.0003452,2]
[311065571,1704891196421,-4128.32,0.0003452,2]
[311065572,1704891196433,-500.0,0.0003452,2]
[311065573,1704891196443,-7057.36,0.0003452,2]
[311065574,1704891196454,-682.44,0.0003452,2]
[311065575,1704891196470,-1293.22,0.0003452,2]
[311065576,1704891196480,-1047.14,0.0003452,2]
[311065577,1704891196490,-3328.34,0.0003452,2]
[311065578,1704891196500,-2896.37,0.0003452,2]
[311065579,1704891196511,-668.72,0.0003452,2]
[311065580,1704891196521,-3025.67,0.0003452,2]
[311065581,1704891196532,-1350.56,0.0003452,2]
[311065582,1704891196542,-500.0,0.0003452,2]
[311065583,1704891196551,-2341.12,0.0003452,2]
[311065584,1704891196561,-953.47,0.0003452,2]
[311065585,1704891196571,-2098.62,0.0003452,2]
[311065586,1704891196581,-703.2,0.0003452,2]
[311065587,1704891196590,-1930.74,0.0003452,2]
[311065588,1704891196600,-405.41455721,0.0003452,2]
[311065589,1704891196609,-5339.67,0.0003452,2]
[311065590,1704891196619,-503.67,0.0003452,2]
[311065591,1704891196629,-170.42278381,0.0003452,2]
[311065592,1704891196638,-4486.53,0.0003452,2]
[311065593,1704891196647,-2153.92,0.0003452,2]
[311065594,1704891196658,-1333.7,0.0003452,2]
[311065595,1704891196668,-1093.38,0.0003452,2]
[311065596,1704891196677,-3990.83,0.0003452,2]
[311065597,1704891196687,-843.02,0.0003452,2]
[311065598,1704891196697,-3222.77,0.0003452,2]
[311065599,1704891196708,-915.67,0.0003452,2]
[311065600,1704891196723,-500.0,0.0003452,2]
[311065601,1704891196733,-6104.89,0.0003452,2]
[311065602,1704891196744,-723.37,0.0003452,2]
[311065603,1704891196754,-1149.9,0.0003452,2]
[311065604,1704891196764,-5798.03,0.0003452,2]
[311065605,1704891196774,-4625.49,0.0003452,2]
[311065606,1704891196785,-550.5,0.0003452,2]
[311065607,1704891196795,-13391.47,0.0003452,2]
[311065608,1704891196805,-1882.58,0.0003452,2]
[311065609,1704891196814,-1438.47,0.0003452,2]
[311065610,1704891196825,-3391.89,0.0003452,2]
[311065611,1704891196835,-17056.02,0.0003452,2]
[311065612,1704891196845,-1223.46,0.0003452,2]
[311065613,1704891196854,-1903.64,0.0003452,2]
[311065614,1704891196864,-535.17,0.0003452,2]
[311065615,1704891196873,-1447.74,0.0003452,2]
[311065616,1704891196882,-500.0,0.0003452,2]
[311065617,1704891196892,-903.74,0.0003452,2]
[311065618,1704891196901,-1181.32,0.0003452,2]
[311065619,1704891196910,-897.9,0.0003452,2]
[311065620,1704891196919,-3416.68,0.0003452,2]
[311065621,1704891196928,-1323.99,0.0003452,2]
[311065622,1704891196938,-605.66,0.0003452,2]
[311065623,1704891196947,-2647.12,0.0003452,2]
[311065624,1704891196955,-1240.59,0.0003452,2]
[311065625,1704891196968,-1066.0,0.0003452,2]
[311065626,1704891196978,-3383.46,0.0003452,2]
[311065627,1704891196987,-1858.38,0.0003452,2]
[311065628,1704891196997,-556.19,0.0003452,2]
[311065629,1704891197006,-2765.04,0.0003452,2]
[311065630,1704891197016,-656.06,0.0003452,2]
[311065631,1704891197025,-1414.02,0.0003452,2]
[311065632,1704891197035,-1721.84,0.0003452,2]
[311065633,1704891197044,-6948.27,0.0003452,2]
[311065634,1704891197054,-500.0,0.0003452,2]
[311065635,1704891197064,-787.87,0.0003452,2]
[311065636,1704891197073,-1113.97,0.0003452,2]
[311065637,1704891197083,-1850.44,0.0003452,2]
[311065638,1704891197092,-875.41,0.0003452,2]
[311065639,1704891197102,-622.97,0.0003452,2]
[311065640,1704891197112,-975.55,0.0003452,2]
[311065641,1704891197122,-13325.5,0.0003452,2]
[311065642,1704891197132,-2699.57,0.0003452,2]
[311065643,1704891197142,-816.51,0.0003452,2]
[311065644,1704891197152,-506.73,0.0003452,2]
[311065645,1704891197161,-905.55,0.0003452,2]
[311065646,1704891197171,-602.85,0.0003452,2]
[311065647,1704891197181,-1571.82,0.0003452,2]
[311065648,1704891197191,-1172.85,0.0003452,2]
[311065649,1704891197201,-1103.19,0.0003452,2]
[311065650,1704891197213,-1902.92,0.0003452,2]
[311065651,1704891197224,-551.04,0.0003452,2]
[311065652,1704891197234,-719.09,0.0003452,2]
[311065653,1704891197244,-816.66,0.0003452,2]
[311065654,1704891197254,-500.0,0.0003452,2]
[311065655,1704891197264,-4042.49,0.0003452,2]
[311065656,1704891197274,-1029.72,0.0003452,2]
[311065657,1704891197284,-711.14,0.0003452,2]
[311065658,1704891197294,-750.11,0.0003452,2]
[311065659,1704891197303,-6582.51,0.0003452,2]
[311065660,1704891197313,-548.8,0.0003452,2]
[311065661,1704891197323,-1032.31,0.0003452,2]
[311065662,1704891197333,-3983.8,0.0003452,2]
[311065663,1704891197343,-541.81,0.0003452,2]
[311065664,1704891197353,-3506.94,0.0003452,2]
[311065665,1704891197363,-1408.06,0.0003452,2]
[311065666,1704891197373,-1081.29,0.0003452,2]
[311065667,1704891197384,-1527.61,0.0003452,2]
[311065668,1704891197393,-660.7,0.0003452,2]
[311065669,1704891197402,-8785.85,0.0003452,2]
[311065670,1704891197412,-2858.46,0.0003452,2]
[311065671,1704891197422,-2768.41,0.0003452,2]
[311065672,1704891197432,-2292.41,0.0003452,2]
[311065673,1704891197443,-4131.39,0.0003452,2]
[311065674,1704891197453,-746.91,0.0003452,2]
[311065675,1704891197465,-2876.26,0.0003452,2]
[311065676,1704891197475,-2170.96,0.0003452,2]
[311065677,1704891197484,-2634.97,0.0003452,2]
[311065678,1704891197494,-1142.75,0.0003452,2]
[311065679,1704891197503,-1716.45,0.0003452,2]
[311065680,1704891197514,-1039.47,0.0003452,2]
[311065681,1704891197524,-3670.86,0.0003452,2]
[311065682,1704891197534,-602.26,0.0003452,2]
[311065683,1704891197544,-614.41,0.0003452,2]
[311065684,1704891197555,-2195.0,0.0003452,2]
[311065685,1704891197564,-1673.5,0.0003452,2]
[311065686,1704891197574,-2390.42,0.0003452,2]
[311065687,1704891197584,-3651.48,0.0003452,2]
[311065688,1704891197594,-5390.38,0.0003452,2]
[311065689,1704891197605,-38163.08,0.0003452,2]
[311065690,1704891197615,-500.0,0.0003452,2]
[311065691,1704891197625,-1305.31,0.0003452,2]
[311065692,1704891197635,-1396.89,0.0003452,2]
[311065693,1704891197644,-1467.77,0.0003452,2]
[311065694,1704891197654,-1697.53,0.0003452,2]
[311065695,1704891197664,-14627.59,0.0003452,2]
[311065696,1704891197674,-2605.66,0.0003452,2]
[311065697,1704891197683,-1698.7,0.0003452,2]
[311065698,1704891197693,-601.21,0.0003452,2]
[311065699,1704891197703,-500.0,0.0003452,2]
[311065700,1704891197716,-3381.31,0.0003452,2]
[311065701,1704891197726,-3094.77,0.0003452,2]
[311065702,1704891197736,-999.48,0.0003452,2]
[311065703,1704891197746,-30990.15,0.0003452,2]
[311065704,1704891197756,-607.81,0.0003452,2]
[311065705,1704891197766,-2892.8,0.0003452,2]
[311065706,1704891197775,-5290.12,0.0003452,2]
[311065707,1704891197785,-1578.38,0.0003452,2]
[311065708,1704891197795,-2017.0,0.0003452,2]
[311065709,1704891197804,-840.86,0.0003452,2]
[311065710,1704891197814,-4827.58,0.0003452,2]
[311065711,1704891197824,-3994.86,0.0003452,2]
[311065712,1704891197833,-500.0,0.0003452,2]
[311065713,1704891197843,-1048.25,0.0003452,2]
[311065714,1704891197853,-642.94,0.0003452,2]
[311065715,1704891197863,-1904.14,0.0003452,2]
[311065716,1704891197872,-500.0,0.0003452,2]
[311065717,1704891197882,-539.92,0.0003452,2]
[311065718,1704891197891,-1424.2,0.0003452,2]
[311065719,1704891197901,-1050.78,0.0003452,2]
[311065720,1704891197911,-500.0,0.0003452,2]
[311065721,1704891197920,-2602.05,0.0003452,2]
[311065722,1704891197930,-5503.03,0.0003452,2]
[311065723,1704891197940,-1522.78,0.0003452,2]
[311065724,1704891197950,-2260.26,0.0003452,2]
[311065725,1704891197962,-753.71,0.0003452,2]
[311065726,1704891197972,-821.97,0.0003452,2]
[311065727,1704891197981,-901.27,0.0003452,2]
[311065728,1704891197991,-1838.58,0.0003452,2]
[311065729,1704891198000,-6384.72,0.0003452,2]
[311065730,1704891198010,-627.49,0.0003452,2]
[311065731,1704891198019,-599.02,0.0003452,2]
[311065732,1704891198029,-500.0,0.0003452,2]
[311065733,1704891198039,-632.63,0.0003452,2]
[311065734,1704891198049,-2196.77,0.0003452,2]
[311065735,1704891198059,-782.96,0.0003452,2]
[311065736,1704891198070,-864.41,0.0003452,2]
[311065737,1704891198080,-2505.88,0.0003452,2]
[311065738,1704891198090,-1516.0,0.0003452,2]
[311065739,1704891198101,-1765.01,0.0003452,2]
[311065740,1704891198110,-6045.31,0.0003452,2]
[311065741,1704891198121,-720.09,0.0003452,2]
[311065742,1704891198131,-3365.53,0.0003452,2]
[311065743,1704891198141,-870.91,0.0003452,2]
[311065744,1704891198151,-927.81,0.0003452,2]
[311065745,1704891198161,-2120.01,0.0003452,2]
[311065746,1704891198171,-1570.4,0.0003452,2]
[311065747,1704891198181,-868.01,0.0003452,2]
[311065748,1704891198190,-767.25,0.0003452,2]
[311065749,1704891198201,-2584.72,0.0003452,2]
[311065750,1704891198212,-1450.1,0.0003452,2]
[311065751,1704891198222,-5200.93,0.0003452,2]
[311065752,1704891198232,-1551.81,0.0003452,2]
[311065753,1704891198242,-602.13,0.0003452,2]
[311065754,1704891198253,-754.64,0.0003452,2]
[311065755,1704891198264,-3512.62,0.0003452,2]
[311065756,1704891198274,-1650.34,0.0003452,2]
[311065757,1704891198284,-813.75,0.0003452,2]
[311065758,1704891198295,-2261.23,0.0003452,2]
[311065759,1704891198306,-2954.77,0.00034521,2]
[311065760,1704891198317,-500.0,0.0003453,2]
[311065761,1704891198328,-420.682381,0.000346,2]
[311065762,1704891198340,-150.0,0.000346,8]
[311065763,1704891198351,-647.97,0.00034606,2]
[311065764,1704891198363,-180.0,0.00034658,2]
[311065765,1704891198375,-217.62103545,0.000347,7]
[311065766,1704891198385,-418.0,0.00034751,2]
[311065767,1704891198395,-9685.1008645,0.0003477,2]
[311065768,1704891198406,-150.0,0.00034793,2]
[311065769,1704891198417,-1305.2,0.00034794,2]
[311065770,1704891198427,-1164.78,0.00034794,2]
[311065771,1704891198438,-632.81,0.00034794,2]
[311065772,1704891198449,-691.12,0.00034794,2]
[311065773,1704891198461,-610.62,0.00034794,2]
[311065774,1704891198471,-570.49,0.00034794,2]
[311065775,1704891198481,-648.06,0.00034794,2]
[311065776,1704891198491,-528.22,0.00034794,2]
[311065777,1704891198501,-613.28,0.00034794,2]
[311065778,1704891198511,-500.0,0.00034794,2]
[311065779,1704891198522,-606.62,0.00034794,2]
[311065780,1704891198532,-1296.75,0.00034794,2]
[311065781,1704891198542,-549.61,0.00034794,2]
[311065782,1704891198552,-539.9,0.00034794,2]
[311065783,1704891198562,-500.0,0.00034794,2]
[311065784,1704891198573,-500.0,0.00034794,2]
[311065785,1704891198583,-554.24,0.00034794,2]
[311065786,1704891198593,-604.42,0.00034794,2]
[311065787,1704891198603,-500.0,0.00034794,2]
[311065788,1704891198613,-597.45,0.00034794,2]